Workbook

Sheet 例題23 エタノール蒸気吸収
A1: 微分方程式数 | B1: 2 | F1: 定数 | P1: 化工便覧 p. 474
A2: z= | B2: y= | C2: x= | F2: m= | G2: 0.53 | P2: HG | Q2: 0.761 | R2: m
A3: 6.8 | B3: 2.663042554e-05 | C3: -5.909139217e-05 | F3: kya= | G3: 168 | H3: kmol/m3-h | P3: HL | Q3: 0.262 | R3: m
B4: y'= | C4: x'= | F4: kxa= | G4: 607 | H4: kmol/m3-h | P4: GM=GM' | Q4: 128 | R4: kmol/m2-h
A5: 微分方程式→ | B5: =-(G3/G6)*(B3-G2*(G5*C3-B3)/(G5-G2)) -> -6.63282787e-05 | C5: =-(G4/G13)*((G5*C3-B3)/(G5-G2)-C3) -> -5.342037701e-05 | F5: D= | G5: =-G4/G3 -> -3.613095238 | P5: LM=LM' | Q5: 159 | R5: kmol/m2-h
F6: G= | G6: 128 | H6: kmol/m2-h | P6: kya=G/HG | Q6: =Q4/Q2 -> 168.1997372 | R6: kmol/m3-h
A7: 積分区間z=[a, | B7: 0 | F7: yB= | G7: 0.00868 | P7: kxa=L/HL | Q7: =Q5/Q3 -> 606.870229 | R7: kmol/m3-h
A8: b] | B8: 6.8 | F8: xB*= | G8: =G7/G2 -> 0.01637735849
A9: 積分刻み幅Δz | B9: 0.2 | F9: yT= | G9: 0.0001
A10: 計算結果 | F10: xT= | G10: 0
A11: z | B11: y | C11: x | D11: yi | E11: xi | F11: Lmin= | G11: =G6*(G7-G9)/(G8-G10) -> 67.05843318 | H11: kmol/m2-h
A12: 0 | B12: =G7 -> 0.00868 | C12: =G14 -> 0.006910277844 | D12: =$G$2*($G$5*C12-B12)/($G$5-$G$2) -> 0.004304311082 | E12: =($G$5*C12-B12)/($G$5-$G$2) -> 0.008121341663 | F12: CL= | G12: 2.37
A13: 0.2 | B13: 0.00760354569 | C13: 0.006043308337 | D13: =$G$2*($G$5*C13-B13)/($G$5-$G$2) -> 0.003765893388 | E13: =($G$5*C13-B13)/($G$5-$G$2) -> 0.007105459222 | F13: L= | G13: =G12*G11 -> 158.9284866 | H13: kmol/m2-h
A14: 0.4 | B14: 0.006659452671 | C14: 0.005282941779 | D14: 0.003293679768 | E14: 0.006214490128 | F14: xB= | G14: =(G6/G13)*(G7-G9)+G10 -> 0.006910277844
A15: 0.6 | B15: 0.005831445741 | C15: 0.004616070224 | D15: 0.00287952974 | E15: 0.005433074982
A16: 0.8 | B16: 0.005105250904 | C16: 0.004031197486 | D16: 0.002516303781 | E16: 0.004747742983
A17: 1 | B17: 0.004468349301 | C17: 0.003518240954 | D17: 0.002197740244 | E17: 0.004146679705
A18: 1.2 | B18: 0.003909761396 | C18: 0.003068357782 | D18: 0.001918347418 | E18: 0.00361952343
A19: 1.4 | B19: 0.003419857703 | C19: 0.00267379244 | D19: 0.001673308855 | E19: 0.003157186519
A20: 1.6 | B20: 0.002990192782 | C20: 0.002327743024 | D20: 0.001458400341 | E20: 0.002751698757
A21: 1.8 | B21: 0.002613359647 | C21: 0.002024243995 | D21: 0.001269917072 | E21: 0.002396069947
A22: 2 | B22: 0.002282862078 | C22: 0.001758063339 | D22: 0.001104609787 | E22: 0.00208416941
A23: 2.2 | B23: 0.001993002634 | C23: 0.001524612373 | D23: 0.0009596287585 | E23: 0.001810620299
A24: 2.4 | B24: 0.001738784434 | C24: 0.001319866639 | D24: 0.0008324746601 | E24: 0.001570706906
A25: 2.6 | B25: 0.001515825014 | C25: 0.00114029653 | D25: 0.0007209554851 | E25: 0.001360293368
A26: 2.8 | B26: 0.001320280782 | C26: 0.0009828064394 | D26: 0.0006231487564 | E26: 0.001175752371
A27: 3 | B27: 0.001148780754 | C27: 0.0008446813991 | D27: 0.0005373683857 | E27: 0.001013902615
A28: 3.2 | B28: 0.0009983684434 | C28: 0.000723540274 | D28: 0.0004621356068 | E28: 0.000871953975
A29: 3.4 | B29: 0.0008664508966 | C29: 0.0006172947143 | D29: 0.0003961534831 | E29: 0.0007474594021
A30: 3.6 | B30: 0.0007507539887 | C30: 0.000524113155 | D30: 0.0003382845501 | E30: 0.000638272736
A31: 3.8 | B31: 0.000649283223 | C31: 0.0004423892408 | D31: =$G$2*($G$5*C31-B31)/($G$5-$G$2) -> 0.0002875312063 | E31: =($G$5*C31-B31)/($G$5-$G$2) -> 0.00054251171
A32: 4 | B32: 0.0005602893469 | C32: 0.0003707141347 | D32: 0.0002430185158 | E32: 0.0004585255015
A33: 4.2 | B33: 0.0004822381966 | C33: 0.0003078522309 | D33: 0.0002039791251 | E33: 0.0003848662738
A34: 4.4 | B34: 0.0004137842497 | C34: 0.0002527198542 | D34: 0.0001697400349 | E34: 0.0003202642168
A35: 4.6 | B35: 0.00035374743 | C35: 0.0002043665785 | D35: 0.0001397109981 | E35: 0.0002636056568
A36: 4.8 | B36: 0.0003010927638 | C36: 0.0001619588427 | D36: 0.0001133743448 | E36: 0.0002139138581
A37: 5 | B37: 0.0002549125382 | C37: 0.0001247655805 | D37: 9.027605785e-05 | E37: 0.0001703321846
A38: 5.2 | B38: 0.0002144106533 | C38: 9.214561806e-05 | D38: =$G$2*($G$5*C38-B38)/($G$5-$G$2) -> 7.001794633e-05 | E38: =($G$5*C38-B38)/($G$5-$G$2) -> 0.0001321093327
A39: 5.4 | B39: 0.0001788888979 | C39: 6.353662041e-05 | D39: 5.225078102e-05 | E39: 9.858637928e-05
A40: 5.6 | B40: 0.0001477349129 | C40: 3.844539758e-05 | D40: 3.66682741e-05 | E40: 6.918542283e-05
A41: 5.8 | B41: 0.0001204116356 | C41: 1.643940244e-05 | D41: 2.300179902e-05 | E41: 4.339962079e-05
A42: 6 | B42: 9.644804027e-05 | C42: -2.860725951e-06 | D42: =$G$2*($G$5*C42-B42)/($G$5-$G$2) -> 1.101575967e-05 | E42: =($G$5*C42-B42)/($G$5-$G$2) -> 2.07844522e-05

Sheet COCO_23結果整理
A1: <COCO_23_AbsorpEtOH.fsd>計算結果 | J1: 0.00728623 | K1: 0.00868 | L1: 化学工学便覧p. 472 | N1: 0 | O1: 0
A2: mole fraction | J2: 0.00728623 | K2: 0.00385447 | L2: x | M2: y* | N2: 0.007286 | O2: 0.003854
A3: Stage | B3: x | C3: y | D3: 操作線x | E3: y | J3: 0.0032048 | K3: 0.00385447 | L3: 0 | M3: 0 | N3: 0.008 | O3: =N3*0.5288 -> 0.0042304
A4: feed | B4: 0 | J4: 0.0032048 | K4: 0.00192437 | L4: 0.001 | M4: 0.000381711768 | N4: 0.01 | O4: =N4*0.5288 -> 0.005288
A5: 1 | B5: 7.357e-05 | C5: 8.9308e-05 | D5: 0 | E5: 8.9308e-05 | J5: 0.00156084 | K5: 0.00192437 | L5: 0.002 | M5: 0.0007951776742
A6: 2 | B6: 0.0001913 | C6: 0.00017708 | D6: 7.357e-05 | E6: 0.00017708 | J6: 0.00156084 | K6: 0.00102008 | L6: 0.005 | M6: 0.00224232337
A7: 3 | B7: 0.00040015 | C7: 0.00031594 | D7: 0.0001913 | E7: 0.00031594 | J7: 0.00079065 | K7: 0.00102008 | L7: 0.0075 | M7: 0.003710832042
A8: 4 | B8: 0.00079065 | C8: 0.00056146 | D8: 0.00040015 | E8: 0.00056146 | J8: 0.00079065 | K8: 0.00056146 | L8: 0.01 | M8: 0.005448798682
A9: 5 | B9: 0.00156084 | C9: 0.00102008 | D9: 0.00079065 | E9: 0.00102008 | J9: 0.00040015 | K9: 0.00056146 | N9: 段 | O9: x | P9: 段 | Q9: y
A10: 6 | B10: 0.0032048 | C10: 0.00192437 | D10: 0.00156084 | E10: 0.00192437 | J10: 0.00040015 | K10: 0.00031594 | N10: 0.5 | O10: 0 | P10: 0.5 | Q10: 8.9308e-05
A11: 7 | B11: 0.00728623 | C11: 0.00385447 | D11: 0.0032048 | E11: 0.00385447 | J11: 0.0001913 | K11: 0.00031594 | N11: 1.5 | O11: 7.357e-05 | P11: 1.5 | Q11: 0.00017708
A12: feed | C12: 0.00868 | D12: 0.00728623 | E12: 0.00868 | J12: 0.0001913 | K12: 0.00017708 | N12: 2.5 | O12: 0.0001913 | P12: 2.5 | Q12: 0.00031594
J13: 7.357e-05 | K13: 0.00017708 | N13: 3.5 | O13: 0.00040015 | P13: 3.5 | Q13: 0.00056146
J14: 7.357e-05 | K14: 8.9308e-05 | N14: 4.5 | O14: 0.00079065 | P14: 4.5 | Q14: 0.00102008
J15: 0 | K15: 8.9308e-05 | N15: 5.5 | O15: 0.00156084 | P15: 5.5 | Q15: 0.00192437
N16: 6.5 | O16: 0.0032048 | P16: 6.5 | Q16: 0.00385447
N17: 7.5 | O17: 0.00728623 | P17: 7.5 | Q17: 0.00868

Sheet COCO_24結果整理
B1: <COCO_24_AbsorpHCs.fsd> | O1: Methane | Q1: Ethane | S1: Propane | U1: N-butane
O2: X' | P2: Y' | Q2: X' | R2: Y' | S2: X' | T2: Y' | U2: X' | V2: Y'
B3: Flow rates (kmol/s) | I3: X' 成分流量mol/供給全mol
A4: Stage | B4: Liquid | C4: N-octadeca | D4: Methane | E4: Ethane | F4: Propane | G4: N-butane | I4: Methane | J4: Ethane | K4: Propane | L4: N-butane | O4: 0.01137 | P4: 0.78 | Q4: 0.00525 | R4: 0.1 | S4: 0.0148 | T4: 0.08 | U4: 0.01126 | V4: 0.04
B5: 3.53 | C5: 3.53 | D5: 0 | E5: 0 | F5: 0 | G5: 0 | H5: 供給 | I5: 0 | J5: 0 | K5: 0 | L5: 0 | O5: 0.01137 | P5: 0.7803 | Q5: 0.00525 | R5: 0.1002 | S5: 0.0148 | T5: 0.0768 | U5: 0.01126 | V5: 0.0164
A6: 1 | B6: 3.61198 | C6: 3.529995278 | D6: 0.04282580207 | E6: 0.0170158933 | F6: 0.02147379902 | G6: 0.000667493904 | H6: 1 | I6: =D6/$C$5 -> 0.01213195526 | J6: =E6/$C$5 -> 0.004820366374 | K6: 0.006083229183 | L6: 0.0001890917575 | O6: 0.01147 | P6: 0.7803 | Q6: 0.00531 | R6: 0.1002 | S6: 0.01388 | T6: 0.0768 | U6: 0.00457 | V6: 0.0164
A7: 2 | B7: 3.6274 | C7: 3.529993428 | D7: 0.04149491682 | E7: 0.0188242472 | F7: 0.03478789049 | G7: 0.002298066722 | H7: 2 | I7: =D7/$C$5 -> 0.01175493394 | J7: =E7/$C$5 -> 0.005332647933 | K7: =F7/$C$5 -> 0.009854926486 | L7: =G7/$C$5 -> 0.0006510104028 | O7: 0.01147 | P7: 0.7807 | Q7: 0.00531 | R7: 0.1004 | S7: 0.01388 | T7: 0.0713 | U7: 0.00457 | V7: 0.0066
A8: 3 | B8: 3.63963 | C8: 3.530000705 | D8: 0.04088541964 | E8: 0.01890656758 | F8: 0.04351687213 | G8: 0.006319853532 | H8: 3 | I8: 0.01158227185 | J8: 0.005355968154 | K8: 0.01232772582 | L8: 0.00179032678 | O8: 0.01158 | P8: 0.7807 | Q8: 0.00536 | R8: 0.1004 | S8: 0.01233 | T8: 0.0713 | U8: 0.00179 | V8: 0.0066
A9: 4 | B9: 3.65435 | C9: 3.529999778 | D9: 0.04049165974 | E9: 0.01873713147 | F9: 0.04900154459 | G9: 0.01611995909 | H9: 4 | I9: 0.01147072514 | J9: 0.005307969256 | K9: 0.01388145739 | L9: 0.004566560649 | O9: 0.01158 | P9: 0.7813 | Q9: 0.00536 | R9: 0.1003 | S9: 0.01233 | T9: 0.0625 | U9: 0.00179 | V9: 0.0025
A10: 5 | B10: 3.68071 | C10: 3.530003329 | D10: 0.04015949067 | E10: 0.0185471713 | F10: 0.05224105317 | G10: 0.03975939749 | H10: 5 | I10: 0.01137662625 | J10: 0.005254156177 | K10: 0.0147991652 | L10: 0.01126328541 | O10: 0.01175 | P10: 0.7813 | Q10: 0.00533 | R10: 0.1003 | S10: 0.00985 | T10: 0.0625 | U10: 0.00065 | V10: 0.0025
O11: 0.01175 | P11: 0.7827 | Q11: 0.00533 | R11: 0.0985 | S11: 0.00985 | T11: 0.0492 | U11: 0.00065 | V11: 0.0009
O12: 0.01213 | P12: 0.7827 | Q12: 0.00482 | R12: 0.0985 | S12: 0.00608 | T12: 0.0492 | U12: 0.00019 | V12: 0.0009
O13: 0.01213 | P13: 0.7398 | Q13: 0.00482 | R13: 0.0815 | S13: 0.00608 | T13: 0.0278 | U13: 0.00019 | V13: 0.0002
B14: Flow rates (kmol/s) | I14: Y' 成分流量mol/供給全mol | Q14: 0 | R14: 0.0815 | S14: 0 | T14: 0.0278
A15: Stage | B15: Vapor | C15: N-octadeca | D15: Methane | E15: Ethane | F15: Propane | G15: N-butane | I15: Methane | J15: Ethane | K15: Propane | L15: N-butane
N16: 平衡線 | O16: =O17*P16/P17 -> 0.001748558247 | P16: 0.12 | Q16: 0 | R16: 0 | S16: 0 | T16: 0 | U16: 0 | V16: 0
A17: 1 | B17: 0.849294 | C17: 3.81870118e-07 | D17: 0.7398412358 | E17: 0.08145289994 | F17: 0.02775917439 | G17: 0.0002407069055 | H17: 1塔頂 | I17: =D17/$B$22 -> 0.7398412358 | J17: =E17/$B$22 -> 0.08145289994 | K17: 0.02775917439 | L17: 0.0002407069055 | O17: =O5*0.1 -> 0.001137 | P17: =P5*0.1 -> 0.07803 | Q17: 0.0048 | R17: 0.0815 | S17: 0.00608 | T17: 0.0278 | U17: 0.0113 | V17: 0.0164
A18: 2 | B18: 0.931277 | C18: 3.529669475e-07 | D18: 0.7826666102 | E18: 0.09846857359 | F18: 0.04923298301 | G18: 0.0009082185815 | H18: 2 | I18: =D18/$B$22 -> 0.7826666102 | J18: =E18/$B$22 -> 0.09846857359 | K18: =F18/$B$22 -> 0.04923298301 | L18: =G18/$B$22 -> 0.0009082185815 | O18: 0 | P18: 0 | Q18: 0.006 | R18: =R17*Q18/Q17 -> 0.101875 | S18: 0.0148 | T18: 0.0768
A19: 3 | B19: 0.946699 | C19: 3.513260287e-07 | D19: 0.7813352989 | E19: 0.1002771982 | F19: 0.06254717222 | G19: 0.00253881951 | H19: 3 | I19: 0.7813352989 | J19: 0.1002771982 | K19: 0.06254717222 | L19: 0.00253881951 | N19: 操作線 | Q19: 0 | R19: 0.0815 | S19: 0 | T19: 0.0278 | U19: 0 | V19: 0
A20: 4 | B20: 0.958922 | C20: 3.519994327e-07 | D20: 0.7807255247 | E20: 0.1003598176 | F20: 0.07127590512 | G20: 0.006560551166 | H20: 4 | I20: 0.7807255247 | J20: 0.1003598176 | K20: 0.07127590512 | L20: 0.006560551166 | Q20: 0.0048 | R20: 0.0985 | S20: 0.0148 | T20: 0.08 | U20: 0.0113 | V20: 0.04
A21: 5 | B21: 0.973644 | C21: 3.49316588e-07 | D21: 0.780331852 | E21: 0.1001899149 | F21: 0.07676072986 | G21: 0.01636072432 | H21: 5 | I21: 0.780331852 | J21: 0.1001899149 | K21: 0.07676072986 | L21: 0.01636072432 | Q21: 0.0054 | R21: 0.1004
B22: 1 | C22: 0 | D22: 0.78 | E22: 0.1 | F22: 0.08 | G22: 0.04 | H22: 塔底 | I22: 0.78 | J22: 0.1 | K22: 0.08 | L22: 0.04
A36: 表 各成分の塔頂および塔底ガス組成
A37: 成分 | B37: メタン | C37: エタン | D37: プロパン | E37: ブタン
A38: K | B38: 71.7 | C38: 18.2 | D38: 4.7 | E38: 1.3
A39: 回収率 | B39: 0.053 | C39: 0.208 | D39: 0.738 | E39: 0.998
A40: YB'(塔底ガス組成) | B40: 0.78 | C40: 0.1 | D40: 0.08 | E40: 0.04
A41: YT'(塔頂ガス組成) | B41: 0.74 | C41: 0.082 | D41: 0.028 | E41: 0.0002

Sheet COCO_ガス水Henry定数
A1: Fig. 4.27の再作成 | D1: Henry, Seader, Roper: Separation Process Principles, Third edition, p. 177
B3: 温度 | C3: 1/H
A4: NH3 | B4: 0 | C4: 0.5
B5: 35 | C5: 0.3
A7: SO2 | B7: 0 | C7: 0.06441692655
B8: 43.2 | C8: 0.015
A10: Br2 | B10: 0 | C10: 0.045
B11: 40 | C11: 0.007447319739
B12: 80 | C12: 0.002471724145
A14: Cl2 | B14: 0 | C14: 0.004645152752
B15: 15.5 | C15: 0.00201372425
B16: 46.3 | C16: 0.001106623784
B17: 100 | C17: 0.0009311078755
A18: H2S | B18: 0 | C18: 0.00360578643
B19: 40 | C19: 0.001276438809
B20: 100 | C20: 0.0006
A22: CO2 | B22: 0 | C22: 0.0014
B23: 23.1 | C23: 0.0006
B24: 60 | C24: 0.0003
A26: C2H4 | B26: 0 | C26: 0.00018
B27: 20 | C27: 9.794899854e-05
B28: 40 | C28: 6.714288529e-05
A30: 理想気体 | B30: 0 | C30: 0.000727
B31: 100 | C31: 0.000532
A33: C2H6 | B33: 0 | C33: 7e-05
B34: 38.8 | C34: 2.376840287e-05
B35: 100 | C35: 1.348962883e-05
A37: CH4 | B37: 0 | C37: 5e-05
B38: 40 | C38: 1.879316817e-05
B39: 100 | C39: 1.28528666e-05
A41: O2 | B41: 0 | C41: 3.5e-05
B42: 40 | C42: 1.706082389e-05
B43: 100 | C43: 1.227439231e-05
A45: H2 | B45: 0 | C45: 1.7e-05
B46: 40 | C46: 1.348962883e-05
B47: 100 | C47: 1.2e-05
A49: N2 | B49: 0 | C49: 1.7e-05
B50: 40 | C50: 9e-06
B51: 100 | C51: 6e-06
A55: COCOによるHenry定数推算 | D55: EOS/predictiveSRK/(enthalpy)PredictiveSRK
A56: 1atm ガスに平衡な水中モル分率
A57: 温度℃ | B57: 0 | C57: 25 | D57: 60
A58: CO2 | B58: 0.0011 | C58: 0.00053 | D58: 0.00027
A59: SO2 | B59: 0.1219 | C59: 0.0288 | D59: 0.0069
A60: H2S | B60: 0.00157 | C60: 0.00105 | D60: 0.00059
A61: CH4 | B61: 6.6e-05 | C61: 4.1e-05 | D61: 2.4e-05
A62: H2 | B62: 1.86e-05 | C62: 1.64e-05 | D62: 1.286e-05 | I62: 45 | J62: 60
A63: N2 | B63: 2.58e-05 | C63: 1.88e-05 | D63: 1.29e-05 | I63: 0.197 | J63: 0.134
C64: 45 | D64: 60
A65: NH3 | C65: 0.197 | D65: 0.134
A66: COCO book p. 43のKによると | D66: <henry_NH3.fsk>
B67: 0 | C67: 25 | D67: 60
A68: NH3 | C68: 0.61 | D68: 0.15
B80: 1000 | C80: ft3
B81: =B80*28.317 -> 28317 | C81: L
B82: =B81/22.4 -> 1264.151786 | C82: mol
B83: =B82*44/1000 -> 55.62267857 | C83: kg-CO2

Sheet COCO_CO2平衡
A1: CO2, CH4 水への溶解度 | J1: 分圧 | K1: 溶解度
A2: 小島 プロセス設計のための相平衡 p. 88 | J2: MPa | K2: mol frac
A3: 25℃ p=1atmに平衡な水中溶解濃度 x [×10-4 モル分率] | H3: 文献値 | I3: CO2 | J3: 0 | K3: 0
A4: CO2 | B4: 6.05 | J4: 0.1013 | K4: 0.000605
A5: CH4 | B5: 0.248 | J5: 1.013 | K5: 0.00605
I6: CH4 | J6: 0 | K6: 0
B7: =B4/B5 -> 24.39516129 | J7: 0.1013 | K7: 2.48e-05
J8: 1.013 | K8: 0.000248
H10: COCO EOS/Predictive SRK/(Enthalpy) ideal or predict SRK
I11: CO2 | J11: 0 | K11: 0
J12: 0.1013 | K12: 0.00053
J13: 1.013 | K13: 0.0053
I14: CH4 | J14: 0 | K14: 0
J15: 0.1013 | K15: 4.08e-05
J16: 1.013 | K16: 0.00041
K18: =K13/K16 -> 12.92682927
